fUSD/lending_fUSD_20260305
["ID","MTS","AMOUNT","RATE_DAILY","PERIOD"]
[407745160,1772735433207,-4263.18001269,0.00016614,2]
[407745161,1772735433218,-904.11328782,0.00016614,2]
[407745162,1772735433237,-2107.37240693,0.00016614,2]
[407745163,1772735433248,-959.06645445,0.00016614,2]
[407745164,1772735433259,-2491.59768231,0.00016614,2]
[407745169,1772735438094,-654.6,0.00016614,2]
[407745170,1772735438111,-587.38008932,0.00016614,2]
[407745171,1772735438126,-2084.92807162,0.00016614,2]
[407745172,1772735438140,-2225.31323038,0.00016614,2]
[407745173,1772735438163,-294.99008506,0.00016614,2]
[407745174,1772735438177,-67998.25710857,0.00016614,2]
[407745175,1772735438211,-559.53366536,0.00016614,2]
[407745176,1772735438269,-18680.0,0.00016614,2]
[407745179,1772735440212,-853.49342382,0.00016614,2]
[407745180,1772735440267,-1335.42542565,0.00016614,2]
[407745181,1772735440483,-378.66,0.00016614,2]
[407745182,1772735440496,-534.0,0.00016614,2]
[407745183,1772735440807,-275.77490633,0.00016614,2]
[407745197,1772735443111,-51585.72711728,0.00016614,2]
[407745199,1772735443120,-7352.3905454,0.00016614,2]
[407745201,1772735443130,-10803.4736809,0.00016614,2]
[407745203,1772735443139,-73669.9569513,0.00016614,2]
[407745205,1772735443157,-9441.50359097,0.00016628,2]
[407745207,1772735443168,-326.54,0.00016666,2]
[407745208,1772735443179,-276.96665835,0.00016683,2]
[407745209,1772735443188,-920.94,0.000167,2]
[407745210,1772735443198,-635.0,0.00016728,2]
[407745211,1772735443210,-7177.65949068,0.00016735,2]
[407745212,1772735443221,-202.07,0.0001679,2]
[407745213,1772735443231,-300.0,0.0001683,2]
[407745214,1772735443241,-150.0,0.0001683,30]
[407745215,1772735443251,-358.99568502,0.00016881,2]
[407745216,1772735443262,-176.06078434,0.00016881,2]
[407745217,1772735443272,-400.0,0.000169,6]
[407745218,1772735443282,-326.54707085,0.0001694,2]
[407745219,1772735443292,-335.9,0.00016949,2]
[407745220,1772735443301,-200.0,0.00016957,2]
[407745221,1772735443311,-4000.0,0.00016972,2]
[407745222,1772735443321,-285.0,0.00016982,2]
[407745223,1772735443330,-1946.71671722,0.00016998,2]
[407745224,1772735443341,-6374.47389776,0.00017,2]
[407745225,1772735443351,-333.07321791,0.00017,9]
[407745226,1772735443360,-151.0,0.00017,2]
[407745227,1772735443370,-200.0,0.00017,2]
[407745228,1772735443380,-200.0,0.00017,2]
[407745229,1772735443390,-200.0,0.00017,2]
[407745230,1772735443399,-200.0,0.00017,2]
[407745231,1772735443409,-200.0,0.00017,2]
[407745232,1772735443419,-200.0,0.00017,2]
[407745233,1772735443428,-200.0,0.00017,2]
[407745234,1772735443438,-200.0,0.00017,2]
[407745235,1772735443448,-200.0,0.00017,2]
[407745236,1772735443458,-200.0,0.00017,2]
[407745237,1772735443468,-200.0,0.00017,2]
[407745238,1772735443478,-175.93063674,0.00017034,2]
[407745239,1772735443487,-500.0,0.00017034,2]
[407745240,1772735443497,-9441.50359097,0.00017037,2]
[407745241,1772735443508,-202.07,0.0001706,2]
[407745242,1772735443518,-45569.49115023,0.0001711,2]
[407745243,1772735443528,-200.0,0.00017152,2]
[407745244,1772735443538,-166.66,0.00017314,2]
[407745245,1772735443548,-200.0,0.00017317,2]
[407745246,1772735443558,-202.07,0.0001733,2]
[407745247,1772735443568,-1767.53,0.00017374,2]
[407745248,1772735443581,-4000.0,0.00017386,2]
[407745249,1772735443592,-9441.50359097,0.00017446,2]
[407745251,1772735443601,-500.0,0.00017479,2]
[407745253,1772735443611,-1946.71671722,0.00017481,2]
[407745255,1772735443620,-928.95466313,0.00017506,2]
[407745257,1772735443630,-833.07793173,0.00017578,2]
[407745258,1772735443639,-202.07,0.000176,2]
[407745260,1772735443648,-151.0,0.00017607,2]
[407745262,1772735443658,-1000.0,0.00017607,2]
[407745264,1772735443668,-721.12765535,0.00017607,2]
[407745266,1772735443678,-1428.38747117,0.00017607,2]
[407745268,1772735443687,-209.40437684,0.00017607,2]
[407745270,1772735443697,-250.0,0.00017607,2]
[407745272,1772735443707,-250.0,0.00017607,2]
[407745275,1772735443722,-250.0,0.00017607,2]
[407745277,1772735443734,-250.0,0.00017607,2]
[407745279,1772735443744,-250.0,0.00017607,2]
[407745281,1772735443757,-250.0,0.00017607,2]
[407745284,1772735443766,-250.0,0.00017607,2]
[407745287,1772735443776,-250.0,0.00017607,2]
[407745290,1772735443786,-500.0,0.00017607,2]
[407745293,1772735443795,-250.0,0.00017607,2]
[407745296,1772735443805,-250.0,0.00017607,2]
[407745299,1772735443814,-500.0,0.00017607,2]
[407745302,1772735443825,-250.0,0.00017607,2]
[407745305,1772735443836,-250.0,0.00017607,2]
[407745308,1772735443846,-500.0,0.00017607,2]
[407745311,1772735443856,-250.0,0.00017607,2]
[407745314,1772735443866,-250.0,0.00017607,2]
[407745317,1772735443878,-500.0,0.00017607,2]
[407745320,1772735443888,-250.0,0.00017607,2]
[407745322,1772735443898,-250.0,0.00017607,2]
[407745324,1772735443908,-500.0,0.00017607,2]
[407745326,1772735443918,-250.0,0.00017607,2]
[407745328,1772735443927,-250.0,0.00017607,2]
[407745330,1772735443938,-500.0,0.00017607,2]
[407745332,1772735443948,-245.69751528,0.00017607,2]
[407745335,1772735443958,-250.0,0.00017607,2]
[407745337,1772735443968,-500.0,0.00017607,2]
[407745339,1772735443978,-500.0,0.00017607,2]
[407745340,1772735443987,-500.0,0.00017607,2]
[407745342,1772735443997,-500.0,0.00017607,2]
[407745344,1772735444007,-500.0,0.00017607,2]
[407745346,1772735444017,-1000.0,0.00017607,2]
[407745348,1772735444026,-1000.0,0.00017607,2]
[407745350,1772735444036,-1000.0,0.00017607,2]
[407745352,1772735444048,-578.20924308,0.00017607,2]
[407745353,1772735444060,-300.0,0.00017607,2]
[407745354,1772735444070,-1000.0,0.00017607,2]
[407745355,1772735444082,-300.0,0.00017607,2]
[407745356,1772735444094,-1000.0,0.00017607,2]
[407745357,1772735444104,-300.0,0.00017607,2]
[407745358,1772735444114,-1000.0,0.00017607,2]
[407745359,1772735444126,-1000.0,0.00017607,2]
[407745360,1772735444137,-300.0,0.00017607,2]
[407745361,1772735444148,-300.0,0.00017607,2]
[407745362,1772735444157,-1000.0,0.00017607,2]
[407745363,1772735444167,-300.0,0.00017607,2]
[407745364,1772735444178,-970.91497975,0.00017607,2]
[407745365,1772735444189,-300.0,0.00017607,2]
[407745366,1772735444200,-693.3919763,0.00017607,2]
[407745367,1772735444212,-300.0,0.00017607,2]
[407745368,1772735444224,-151.0,0.00017607,2]
[407745369,1772735444234,-300.0,0.00017607,2]
[407745370,1772735444246,-231.42295046,0.00017607,2]
[407745371,1772735444256,-174.61919141,0.00017607,2]
[407745372,1772735444266,-151.0,0.00017607,2]
[407745373,1772735444276,-151.0,0.00017607,2]
[407745374,1772735444286,-151.0,0.00017607,2]
[407745375,1772735444300,-151.0,0.00017607,2]
[407745376,1772735444311,-151.0,0.00017607,2]
[407745377,1772735444321,-250.0,0.00017607,2]
[407745378,1772735444331,-151.0,0.00017607,2]
[407745379,1772735444342,-250.0,0.00017607,2]
[407745380,1772735444351,-151.0,0.00017607,2]
[407745381,1772735444361,-250.0,0.00017607,2]
[407745382,1772735444370,-151.0,0.00017607,2]
[407745383,1772735444380,-250.0,0.00017607,2]
[407745384,1772735444390,-151.0,0.00017607,2]
[407745385,1772735444400,-250.0,0.00017607,2]
[407745386,1772735444411,-151.0,0.00017607,2]
[407745387,1772735444421,-250.0,0.00017607,2]
[407745388,1772735444431,-262.90206542,0.00017607,2]
[407745389,1772735444441,-151.0,0.00017607,2]
[407745390,1772735444451,-500.0,0.00017607,2]
[407745391,1772735444461,-250.0,0.00017607,2]
[407745392,1772735444471,-500.0,0.00017607,2]
[407745393,1772735444481,-500.0,0.00017607,2]
[407745394,1772735444491,-167.06940161,0.00017607,2]
[407745395,1772735444948,-743.50770149,0.00017607,2]
[407745396,1772735444961,-745.65223616,0.00017607,2]
[407745397,1772735444971,-209.40437685,0.00017607,2]
[407745398,1772735444981,-500.0,0.00017607,2]
[407745399,1772735444990,-500.0,0.00017607,2]
[407745400,1772735445000,-500.0,0.00017607,2]
[407745401,1772735445009,-500.0,0.00017607,2]
[407745402,1772735445019,-500.0,0.00017607,2]
[407745403,1772735445031,-500.0,0.00017607,2]
[407745404,1772735445040,-500.0,0.00017607,2]
[407745405,1772735445051,-500.0,0.00017607,2]
[407745406,1772735445062,-269.917619,0.00017607,2]
[407745407,1772735445072,-500.0,0.00017607,2]
[407745408,1772735445081,-500.0,0.00017607,2]
[407745409,1772735445092,-294.78480333,0.00017607,2]
[407745410,1772735445102,-719.04747942,0.00017662,2]
[407745411,1772735445112,-166.66,0.00017671,2]
[407745412,1772735445122,-200.0,0.000177,2]
[407745413,1772735445135,-745.65223616,0.00017717,2]
[407745414,1772735445144,-180.56,0.00017746,2]
[407745415,1772735445154,-773.2413689,0.00017772,2]
[407745416,1772735445165,-4000.0,0.000178,2]
[407745417,1772735445175,-800.0,0.00017808,2]
[407745418,1772735445184,-801.85129955,0.00017827,2]
[407745419,1772735445194,-9441.50359097,0.00017855,2]
[407745420,1772735445203,-202.07,0.0001787,2]
[407745421,1772735445212,-831.51979763,0.00017882,2]
[407745422,1772735445221,-800.0,0.000179,6]
[407745423,1772735445231,-1680.0,0.00017906,2]
[407745424,1772735445240,-5000.0,0.0001793,2]
[407745425,1772735445250,-350.0662126,0.0001793,2]
[407745426,1772735445259,-600.0,0.0001793,2]
[407745427,1772735445268,-193.55068996,0.0001793,2]
[407745428,1772735445279,-250.0,0.0001793,2]
[407745429,1772735445288,-2500.0,0.00017931,2]
[407745430,1772735445298,-2500.0,0.00017931,2]
[407745431,1772735445308,-193.46326284,0.00017931,2]
[407745432,1772735445317,-250.0,0.00017931,2]
[407745433,1772735445329,-300.0,0.00017931,2]
[407745434,1772735445338,-5000.0,0.00017931,2]
[407745435,1772735445352,-862.28603014,0.00017937,2]
[407745436,1772735445361,-1946.71671722,0.00017965,2]
[407745437,1772735445371,-894.19061326,0.00017992,2]
[407745438,1772735445381,-3898.63046606,0.00018,2]
[407745439,1772735445392,-166.66,0.00018028,2]
[407745440,1772735445402,-927.27566595,0.00018047,2]
[407745441,1772735445411,-1786.2328339,0.000181,2]
[407745442,1772735445420,-961.58486559,0.00018102,2]
[407745443,1772735445429,-202.07,0.0001814,2]
[407745444,1772735445440,-1000.0,0.00018155,2]
[407745445,1772735445449,-768.23138632,0.00018155,2]
[407745446,1772735445459,-225.18697532,0.00018155,2]
[407745447,1772735445469,-181.08010149,0.00018155,2]
[407745448,1772735445479,-272.62944185,0.00018155,2]
[407745449,1772735445489,-771.01748645,0.00018155,2]
[407745450,1772735445498,-997.16350561,0.00018157,2]
[407745451,1772735445508,-1349.9168571,0.00018164,2]
[407745452,1772735445523,-417.6131429,0.00018164,2]
[407745453,1772735445533,-3104.2347021,0.0001821,2]
[407745454,1772735445543,-173.3,0.00018214,2]
[407745455,1772735445552,-4000.0,0.00018214,2]
[407745456,1772735445562,-340.74910592,0.00018248,2]
[407745457,1772735445572,-9441.50359097,0.00018264,2]
[407745458,1772735445584,-194.607246,0.00018319,2]
[407745459,1772735445593,-166.66,0.00018385,2]
[407745460,1772735445603,-202.07,0.0001841,2]
[407745461,1772735445612,-1946.71671722,0.00018449,2]
[407745462,1772735445623,-500.0,0.00018493,2]
[407745463,1772735445633,-160.0,0.00018628,2]
[407745464,1772735445643,-7549.81358968,0.00018673,2]
[407745465,1772735445654,-1891.69000129,0.00018673,2]
[407745466,1772735445664,-202.07,0.0001868,2]
[407745467,1772735445673,-1000.0,0.00018703,2]
[407745468,1772735445683,-187.78006525,0.00018703,2]
[407745469,1772735445694,-282.71673119,0.00018703,2]
[407745470,1772735445703,-288.32439168,0.00018703,2]
[407745471,1772735445712,-166.66,0.00018742,2]
[407745472,1772735445722,-1640.5400798,0.00018875,2]
[407745473,1772735445731,-623.46432771,0.00018904,2]
[407745474,1772735445741,-1946.71671722,0.00018933,2]
[407745475,1772735445750,-202.07,0.0001895,2]
[407745476,1772735445759,-1767.53,0.00018953,2]
[407745477,1772735445771,-1000.0,0.00019,2]
[407745478,1772735445781,-500.0,0.00019,5]
[407745479,1772735445791,-32906.2197,0.00019,2]
[407745481,1772735445802,-9441.50359097,0.00019082,2]
[407745482,1772735445811,-366.03872029,0.00019106,2]
[407745483,1772735445821,-350.0,0.00019172,2]
[407745484,1772735445832,-350.0,0.0001919,2]
[407745485,1772735445842,-3009.0,0.000192,2]
[407745486,1772735445852,-2000.0,0.000192,2]
[407745488,1772735445862,-1300.0,0.000192,7]
[407745489,1772735445872,-541.71,0.0001922,2]
[407745490,1772735445882,-202.07,0.0001922,2]
[407745491,1772735445891,-1000.0,0.00019251,2]
[407745492,1772735445903,-194.72792766,0.00019251,2]
[407745493,1772735445912,-293.17725025,0.00019251,2]
[407745494,1772735445922,-2971.694,0.00019299,2]
[407745495,1772735445931,-168.989,0.00019299,2]
[407745496,1772735445941,-1700.0,0.000193,7]
[407745497,1772735445950,-366.0539707,0.00019379,2]
[407745498,1772735445961,-2200.0,0.000194,7]
[407745499,1772735445971,-1946.71671722,0.00019416,2]
[407745500,1772735445980,-508.97935741,0.00019463,2]
[407745501,1772735445991,-101734.0154722,0.00019473,2]
[407745502,1772735446001,-2410.5808125,0.00019473,2]
[407745503,1772735446011,-16437.9892926,0.00019473,2]
[407745504,1772735446021,-202.07,0.0001949,2]
[407745505,1772735446031,-9441.50359097,0.00019491,2]
[407745506,1772735446041,-400.0,0.000195,7]
[407745507,1772735446054,-27366.0824552,0.00019594,2]
[407745508,1772735446064,-400.0,0.000196,7]
[407745509,1772735446075,-500.0,0.00019664,2]
[407745510,1772735446087,-2351.0,0.0001967,2]
[407745511,1772735446097,-400.0,0.000197,7]
[407745512,1772735446108,-695.95063238,0.00019749,2]
[407745513,1772735446119,-202.07,0.0001976,2]
[407745514,1772735446129,-695.95063232,0.00019774,2]
[407745515,1772735446140,-172.70211477,0.00019776,2]
[407745516,1772735446150,-160.0,0.00019776,2]
[407745517,1772735446160,-11833.5,0.0001978,2]
[407745518,1772735446170,-695.95063232,0.00019799,2]
[407745519,1772735446179,-1000.0,0.00019799,2]
[407745520,1772735446189,-201.93286099,0.00019799,2]
[407745521,1772735446199,-304.02480851,0.00019799,2]
[407745522,1772735446209,-400.0,0.000198,7]
[407745523,1772735446218,-609.73051546,0.000198,2]
[407745524,1772735446227,-695.95063232,0.00019825,2]
[407745526,1772735446237,-25000.0,0.0001983,3]
[407745527,1772735446247,-500.0,0.00019835,2]
[407745528,1772735446256,-25000.0,0.00019838,3]
[407745529,1772735446265,-200.0,0.0001984,2]
[407745530,1772735446275,-5800.0,0.00019841,2]
[407745531,1772735446284,-25000.0,0.00019847,3]
[407745532,1772735446293,-5800.0,0.00019849,2]
[407745533,1772735446303,-695.95063232,0.0001985,2]
[407745534,1772735446314,-25000.0,0.00019856,3]
[407745535,1772735446323,-5800.0,0.00019858,2]
[407745536,1772735446335,-16710.61518088,0.00019865,3]
[407745537,1772735446360,-5745.77119241,0.00019865,3]
[407745538,1772735446371,-459.18677778,0.00019865,3]
[407745560,1772735446561,-2084.42684893,0.00019865,3]
[407745562,1772735446570,-54.58168684,0.00019865,3]
[407745564,1772735446584,-1634.55908177,0.00019865,3]
[407745566,1772735446611,-23310.85923139,0.00019865,3]
[407745567,1772735446622,-5800.0,0.00019866,2]
[407745568,1772735446632,-173.3,0.0001987,2]
[407745569,1772735446643,-25000.0,0.00019874,3]
[407745570,1772735446652,-25000.0,0.00019874,3]
[407745571,1772735446662,-5800.0,0.00019875,2]
[407745572,1772735446672,-695.95063232,0.00019875,2]
[407745573,1772735446683,-25000.0,0.00019882,3]
[407745574,1772735446693,-20578.18516097,0.00019882,3]
[407745575,1772735446705,-4421.81483903,0.00019882,3]
[407745576,1772735446715,-5800.0,0.00019883,2]
[407745577,1772735446725,-25000.0,0.00019891,3]
[407745578,1772735446734,-25000.0,0.00019891,3]
[407745579,1772735446744,-5800.0,0.00019892,2]
[407745580,1772735446754,-2000.0,0.000199,2]
[407745581,1772735446764,-25000.0,0.000199,3]
[407745582,1772735446774,-1581.30188863,0.000199,2]
[407745583,1772735446784,-25000.0,0.000199,3]
[407745584,1772735446794,-1849.96405792,0.000199,3]
[407745585,1772735446804,-5800.0,0.000199,2]
[407745586,1772735446814,-695.95063232,0.000199,2]
[407745587,1772735446824,-1946.71671722,0.000199,2]
[407745588,1772735446834,-9441.50359097,0.000199,2]
[407745589,1772735446843,-823.0,0.000199,7]
[407745590,1772735446852,-432.22835744,0.000199,2]
[407745591,1772735446863,-699.87107516,0.000199,2]
[407745592,1772735446873,-2533.75790448,0.000199,2]
[407745593,1772735446882,-508.97935741,0.0001999,2]
[407745594,1772735446891,-508.97935741,0.0001999,2]
[407745595,1772735446901,-2453.0,0.00019992,2]
[407745596,1772735446911,-250526.59084169,0.0002,2]
[407745599,1772735513256,388146.0299,0.00016202,2]
[407745600,1772735536114,4135.5197,0.00016202,2]
[407745601,1772735541866,11405.8936,0.00016202,2]
[407745602,1772735586125,70046.23,0.00016202,2]
[407745603,1772735740140,-385.78326484,0.00016301,2]
[407745614,1772736251243,1019.68391833,0.00015835,2]
[407745615,1772736604045,4610.79837758,0.0001615,2]
[407745619,1772736632098,-550.0,0.00016301,2]
[407745620,1772736632108,-300.0,0.00016301,2]
[407745621,1772736632119,-1200.0,0.00016301,2]
[407745622,1772736632129,-500.0,0.00016301,2]
[407745623,1772736632139,-3466.45087621,0.00016302,2]
[407745624,1772736632150,-15334.99857733,0.00016302,2]
[407745625,1772736632162,-14088.98304646,0.00016302,2]
[407745626,1772736632180,-1000.0,0.00016302,2]
[407745627,1772736632192,-500.0,0.00016373,2]
[407745628,1772736632202,-500.0,0.00016558,2]
[407745629,1772736632212,-500.0,0.00016558,2]
[407745630,1772736632222,-400.0,0.0001656,5]
[407745631,1772736632232,-150.0,0.00016607,2]
[407745632,1772736632242,-1109.0,0.00016669,2]
[407745633,1772736632252,-305.58,0.000167,2]
[407745634,1772736632262,-4239.0,0.00016719,2]
[407745636,1772736632272,-174.4,0.0001679,2]
[407745638,1772736632282,-174.4,0.0001706,2]
[407745640,1772736632291,-578.20924308,0.00017293,2]
[407745642,1772736632301,-693.3919763,0.00017293,2]
[407745644,1772736632311,-262.90206542,0.00017293,2]
[407745646,1772736632321,-174.61919141,0.00017293,2]
[407745648,1772736632331,-174.4,0.0001733,2]
[407745650,1772736632341,-719.04747942,0.00017348,2]
[407745651,1772736632350,-745.65223616,0.00017403,2]
[407745652,1772736632360,-773.2413689,0.00017458,2]
[407745653,1772736632369,-308.04859771,0.00017483,2]
[407745654,1772736632379,-801.85129955,0.00017513,2]
[407745655,1772736632388,-1109.0,0.00017546,2]
[407745657,1772736632398,-831.51979763,0.00017568,2]
[407745659,1772736632413,-174.4,0.000176,2]
[407745660,1772736632422,-862.28603014,0.00017623,2]
[407745661,1772736632431,-1500.0,0.00017662,2]
[407745662,1772736632441,-894.19061326,0.00017678,2]
[407745663,1772736632453,-927.27566595,0.00017733,2]
[407745664,1772736632464,-542.58,0.00017747,2]
[407745665,1772736632474,-961.58486559,0.00017788,2]
[407745666,1772736632487,-420.0,0.00017817,2]
[407745667,1772736632497,-272.62944185,0.00017841,2]
[407745668,1772736632507,-181.08010149,0.00017841,2]
[407745669,1772736632517,-997.16350561,0.00017843,2]
[407745670,1772736632527,-174.4,0.0001787,2]
[407745671,1772736632536,-89453.27,0.00017886,2]
[407745672,1772736632545,-1680.0,0.00017906,2]
[407745673,1772736632555,-500.0,0.00017931,2]
[407745674,1772736632570,-174.4,0.0001814,2]
[407745675,1772736632579,-234.0302,0.00018256,2]
[407745676,1772736632589,-2500.0,0.00018256,2]
[407745677,1772736632599,-151.0,0.00018345,2]
[407745678,1772736632610,-1000.0,0.00018345,2]
[407745679,1772736632619,-250.0,0.00018345,2]
[407745680,1772736632629,-151.0,0.00018345,2]
[407745681,1772736632639,-250.0,0.00018345,2]
[407745682,1772736632648,-721.12765535,0.00018345,2]
[407745683,1772736632658,-151.0,0.00018345,2]
[407745684,1772736632667,-250.0,0.00018345,2]
[407745685,1772736632677,-151.0,0.00018345,2]
[407745686,1772736632686,-151.0,0.00018345,2]
[407745687,1772736632696,-151.0,0.00018345,2]
[407745688,1772736632705,-151.0,0.00018345,2]
[407745689,1772736632715,-151.0,0.00018345,2]
[407745690,1772736632724,-151.0,0.00018345,2]
[407745691,1772736632734,-151.0,0.00018345,2]
[407745692,1772736632743,-151.0,0.00018345,2]
[407745693,1772736632753,-500.0,0.00018345,2]
[407745694,1772736632762,-500.0,0.00018345,2]
[407745695,1772736632771,-500.0,0.00018345,2]
[407745696,1772736632781,-500.0,0.00018345,2]
[407745697,1772736632793,-500.0,0.00018345,2]
[407745698,1772736632802,-500.0,0.00018345,2]
[407745699,1772736632812,-500.0,0.00018345,2]
[407745700,1772736632821,-500.0,0.00018345,2]
[407745701,1772736632830,-500.0,0.00018345,2]
[407745702,1772736632840,-500.0,0.00018345,2]
[407745703,1772736632850,-500.0,0.00018345,2]
[407745704,1772736632860,-151.0,0.00018345,2]
[407745705,1772736632870,-151.0,0.00018345,2]
[407745706,1772736632879,-151.0,0.00018345,2]
[407745707,1772736632890,-151.0,0.00018345,2]
[407745708,1772736632900,-151.0,0.00018345,2]
[407745709,1772736632909,-151.0,0.00018345,2]
[407745710,1772736632923,-151.0,0.00018345,2]
[407745711,1772736632932,-151.0,0.00018345,2]
[407745712,1772736632942,-151.0,0.00018345,2]
[407745713,1772736632951,-70111.63,0.00018356,2]
[407745714,1772736632961,-410.61868516,0.00018389,2]
[407745715,1772736632971,-187.78006525,0.00018389,2]
[407745716,1772736632981,-174.4,0.0001841,2]
[407745717,1772736632991,-1109.0,0.0001847,2]
[407745718,1772736633001,-174.4,0.0001868,2]
[407745719,1772736633011,-1000.0,0.00018893,2]
[407745720,1772736633021,-1000.0,0.00018919,2]
[407745721,1772736633033,-194.72792766,0.00018937,2]
[407745722,1772736633045,-174.4,0.0001895,2]
[407745723,1772736633056,-2000.0,0.000191,2]
[407745724,1772736633066,-1623.0,0.000192,2]
[407745725,1772736633076,-174.4,0.0001922,2]
[407745726,1772736633087,-500.0,0.00019338,2]
[407745727,1772736633098,-500.0,0.00019338,2]
[407745728,1772736633108,-500.0,0.00019338,2]
[407745729,1772736633123,-9999.99,0.00019339,2]
[407745730,1772736633133,-150.99,0.00019339,2]
[407745731,1772736633143,-516.39,0.00019339,2]
[407745732,1772736633155,-271.45,0.00019339,2]
[407745733,1772736633165,-9999.99,0.00019339,2]
[407745734,1772736633175,-499.99,0.00019339,2]
[407745735,1772736633185,-2989.1,0.00019339,2]
[407745736,1772736633195,-311.98,0.00019339,2]
[407745737,1772736633205,-259.58,0.00019339,2]
[407745738,1772736633215,-9999.99,0.00019339,2]
[407745739,1772736633226,-40867.37,0.00019339,2]
[407745740,1772736633236,-299.99,0.00019339,7]
[407745741,1772736633246,-150.99,0.00019339,2]
[407745742,1772736633256,-7286.18,0.00019339,2]
[407745743,1772736633266,-7975.38,0.00019339,2]
[407745744,1772736633276,-7319.42,0.00019339,2]
[407745745,1772736633286,-135188.78,0.00019339,2]
[407745746,1772736633296,-9999.99,0.00019339,2]
[407745747,1772736633306,-3425.98,0.00019339,2]
[407745748,1772736633319,-999.99,0.00019339,2]
[407745749,1772736633330,-350.0,0.0001935,2]
[407745750,1772736633342,-159.0,0.0001938,120]
[407745751,1772736633353,-166.66,0.00019393,2]
[407745752,1772736633363,-3215.132,0.000194,2]
[407745753,1772736633374,-150.516,0.000194,2]
[407745754,1772736633384,-500.0,0.00019425,2]
[407745755,1772736633394,-1000.0,0.00019441,2]
[407745756,1772736633410,-1109.0,0.00019442,2]
[407745757,1772736633421,-587.0,0.00019474,2]
[407745758,1772736633431,-279.49024747,0.00019485,2]
[407745759,1772736633442,-174.4,0.0001949,2]
[407745760,1772736633453,-409.18959214,0.0001953,2]
[407745761,1772736633463,-225.60177557,0.00019617,2]
[407745762,1772736633476,-194.92836115,0.0001962,2]
[407745763,1772736633486,-500.0,0.00019629,2]
[407745764,1772736633496,-500.0,0.00019629,2]
[407745765,1772736633506,-573.2,0.00019629,2]
[407745766,1772736633518,-1008.35756594,0.00019629,5]
[407745767,1772736633532,-1008.35756595,0.00019629,5]
[407745768,1772736633544,-500.0,0.00019629,2]
[407745769,1772736633555,-500.0,0.00019629,2]
[407745770,1772736633565,-201.27075793,0.00019629,5]
[407745771,1772736633575,-155.0,0.00019629,2]
[407745772,1772736633585,-500.0,0.00019629,2]
[407745773,1772736633597,-2289.0,0.0001963,2]
[407745774,1772736633607,-436212.23328319,0.0001963,2]
[407745775,1772736634409,-125412.19280911,0.0001963,2]
[407745776,1772736634422,-198691.32485792,0.0001963,2]
[407745777,1772736634433,-187593.73200849,0.0001963,2]
[407745778,1772736634446,-1254.41808677,0.0001963,2]
[407745779,1772736634456,-3543.3,0.0001963,2]
[407745780,1772736634468,-292.97700002,0.0001963,2]
[407745781,1772736634479,-148161.94298106,0.0001963,2]
[407745782,1772736634491,-1000.0,0.0001963,2]
[407745783,1772736634517,-2073.04999997,0.0001963,2]
[407745792,1772736638203,-544.71107006,0.00017831,2]
[407745793,1772736638214,-2671.80602574,0.0001963,2]
[407745794,1772736638308,-640.93868497,0.0001963,2]
[407745795,1772736638420,-174219.12146276,0.0001963,2]
[407745796,1772736638430,-413.36118658,0.0001963,2]
[407745797,1772736638440,-369.27564149,0.0001963,2]
[407745798,1772736638451,-5347.40488632,0.0001963,2]
[407745799,1772736638461,-2351.0,0.0001967,2]
[407745800,1772736638470,-7000.0,0.000197,2]
[407745802,1772736638481,-225.60177557,0.00019711,2]